[Event "MCR rapid mládeže 2023 U16"]
[Site "Harachov, Czech Republic"]
[Date "2023.09.09"]
[Round "1.32"]
[White "Strihavka, Petr"]
[Black "Vo, Daniel"]
[Result "0-1"]
[TimeControl "20min+5s/move"]
[WhiteElo "1205"]
[BlackElo "1445"]

1. e4 {[%clk 00:20:08]} {[%emt 00:00:01]} c5 {[%clk 00:20:08]} {[%emt
00:00:02]} 2. Nf3 {[%clk 00:20:10]} {[%emt 00:00:02]} d6 {[%clk 00:20:12]}
{[%emt 00:00:02]} 3. d4 {[%clk 00:20:11]} {[%emt 00:00:03]} cxd4 {[%clk
00:20:16]} {[%emt 00:00:03]} 4. Nxd4 {[%clk 00:20:14]} {[%emt 00:00:01]} Nf6
{[%clk 00:20:19]} {[%emt 00:00:02]} 5. Nc3 {[%clk 00:20:16]} {[%emt 00:00:02]}
a6 {[%clk 00:20:23]} {[%emt 00:00:02]} 6. Bc4 {[%clk 00:19:54]} {[%emt
00:00:28]} e6 {[%clk 00:20:18]} {[%emt 00:00:09]} 7. Bg5 {[%clk 00:19:40]}
{[%emt 00:00:18]} Be7 {[%clk 00:20:08]} {[%emt 00:00:15]} 8. h3 {[%clk
00:19:26]} {[%emt 00:00:19]} Qc7 {[%clk 00:19:45]} {[%emt 00:00:29]} 9. Bb3
{[%clk 00:19:15]} {[%emt 00:00:15]} O-O {[%clk 00:19:29]} {[%emt 00:00:21]} 10.
O-O {[%clk 00:19:07]} {[%emt 00:00:13]} h6 {[%clk 00:19:25]} {[%emt 00:00:09]}
11. Bh4 {[%clk 00:19:07]} {[%emt 00:00:05]} b5 {[%clk 00:19:20]} {[%emt
00:00:11]} 12. a3 {[%clk 00:18:55]} {[%emt 00:00:16]} Bb7 {[%clk 00:19:15]}
{[%emt 00:00:11]} 13. Bxe6 {[%clk 00:17:08]} {[%emt 00:01:52]} Nxe4 {[%clk
00:18:39]} {[%emt 00:00:41]} 14. Nxe4 {[%clk 00:16:34]} {[%emt 00:00:39]} Bxe4
{[%clk 00:18:04]} {[%emt 00:00:41]} 15. Bb3 {[%clk 00:16:11]} {[%emt 00:00:27]}
Bxh4 {[%clk 00:17:06]} {[%emt 00:01:03]} 16. Qg4 {[%clk 00:16:02]} {[%emt
00:00:07]} Qe7 {[%clk 00:16:20]} {[%emt 00:00:57]} 17. Rfe1 {[%clk 00:15:30]}
{[%emt 00:00:38]} Bxf2+ {[%clk 00:15:38]} {[%emt 00:00:47]} 18. Kxf2 {[%clk
00:15:17]} {[%emt 00:00:17]} Qf6+ {[%clk 00:15:28]} {[%emt 00:00:07]} 19. Nf3
{[%clk 00:15:10]} {[%emt 00:00:15]} Bxf3 {[%clk 00:14:57]} {[%emt 00:00:41]} 20.
Qxf3 {[%clk 00:14:59]} {[%emt 00:00:16]} Qxf3+ {[%emt 00:00:58]} 21. Kxf3
{[%clk 00:14:52]} {[%emt 00:00:10]} Nd7 {[%clk 00:13:47]} {[%emt 00:00:23]} 22.
Rad1 {[%clk 00:14:39]} {[%emt 00:00:19]} Ne5+ {[%clk 00:13:39]} {[%emt
00:00:14]} 23. Kf2 {[%clk 00:14:34]} {[%emt 00:00:09]} Rfd8 {[%clk 00:13:05]}
{[%emt 00:00:37]} 24. Rd2 {[%clk 00:14:11]} {[%emt 00:00:30]} Rac8 {[%clk
00:12:10]} {[%emt 00:00:59]} 25. c3 {[%clk 00:13:37]} {[%emt 00:00:41]} Kf8
{[%clk 00:11:54]} {[%emt 00:00:19]} 26. Red1 {[%clk 00:13:09]} {[%emt
00:00:34]} Ke7 {[%clk 00:11:33]} {[%emt 00:00:26]} 27. Ke3 {[%clk 00:12:30]}
{[%emt 00:00:42]} g6 {[%clk 00:11:14]} {[%emt 00:00:26]} 28. g4 {[%clk
00:12:13]} {[%emt 00:00:23]} Nc4+ {[%clk 00:09:54]} {[%emt 00:01:24]} 29. Bxc4
{[%clk 00:12:14]} {[%emt 00:00:04]} Rxc4 {[%clk 00:09:56]} {[%emt 00:00:04]} 30.
Rf1 {[%clk 00:11:27]} {[%emt 00:00:51]} Rc5 {[%clk 00:09:25]} {[%emt 00:00:36]}
31. Rdf2 {[%clk 00:11:00]} {[%emt 00:00:32]} Re5+ {[%clk 00:09:14]} {[%emt
00:00:17]} 32. Kd3 {[%clk 00:10:54]} {[%emt 00:00:10]} Rf8 {[%clk 00:09:18]}
{[%emt 00:00:02]} 33. h4 {[%clk 00:09:10]} {[%emt 00:01:48]} f6 {[%clk
00:08:36]} {[%emt 00:00:47]} 34. b4 {[%clk 00:08:55]} {[%emt 00:00:20]} g5
{[%clk 00:07:26]} {[%emt 00:01:15]} 35. h5 {[%clk 00:08:47]} {[%emt 00:00:13]}
d5 {[%clk 00:07:16]} {[%emt 00:00:14]} 36. Rf5 {[%clk 00:08:34]} {[%emt
00:00:19]} Rf7 {[%clk 00:06:44]} {[%emt 00:00:37]} 37. R1f3 {[%clk 00:07:17]}
{[%emt 00:01:19]} Ke6 {[%clk 00:06:31]} {[%emt 00:00:21]} 38. Re3 {[%clk
00:06:46]} {[%emt 00:00:35]} Re7 {[%clk 00:05:46]} {[%emt 00:00:49]} 39. Kd4
{[%clk 00:06:08]} {[%emt 00:00:43]} Rxe3 {[%clk 00:04:40]} {[%emt 00:01:12]} 40.
Kxe3 {[%clk 00:06:11]} {[%emt 00:00:02]} Rc7 {[%clk 00:04:35]} {[%emt
00:00:10]} 41. Kd4 {[%clk 00:06:12]} {[%emt 00:00:05]} Rc4+ {[%clk 00:04:39]}
{[%emt 00:00:02]} 42. Kd3 {[%clk 00:05:57]} {[%emt 00:00:19]} Rxg4 {[%clk
00:04:40]} {[%emt 00:00:03]} 43. Rf3 {[%clk 00:05:55]} {[%emt 00:00:08]} Rh4
{[%clk 00:04:34]} {[%emt 00:00:11]} 44. Re3+ {[%clk 00:05:50]} {[%emt
00:00:10]} Kd6 {[%clk 00:04:24]} {[%emt 00:00:16]} 45. Rf3 {[%clk 00:05:43]}
{[%emt 00:00:09]} Ke7 {[%clk 00:04:27]} {[%emt 00:00:04]} 46. Rf5 {[%clk
00:05:24]} {[%emt 00:00:23]} Ke6 {[%clk 00:04:27]} {[%emt 00:00:06]} 47. Rf3
{[%clk 00:05:26]} {[%emt 00:00:03]} Rxh5 {[%clk 00:04:30]} {[%emt 00:00:03]} 48.
Kd4 {[%clk 00:05:20]} {[%emt 00:00:09]} g4 {[%clk 00:04:11]} {[%emt 00:00:26]}
49. Rg3 {[%clk 00:05:16]} {[%emt 00:00:06]} Kd6 {[%clk 00:03:42]} {[%emt
00:00:36]} 50. Rxg4 {[%clk 00:05:11]} {[%emt 00:00:10]} Rg5 {[%clk 00:03:46]}
{[%emt 00:00:02]} 51. Rh4 {[%clk 00:04:35]} {[%emt 00:00:40]} h5 {[%clk
00:03:48]} {[%emt 00:00:03]} 52. Kd3 {[%clk 00:04:37]} {[%emt 00:00:02]} f5
{[%clk 00:03:43]} {[%emt 00:00:11]} 53. Rf4 {[%clk 00:04:33]} {[%emt 00:00:08]}
Ke5 {[%clk 00:03:45]} {[%emt 00:00:04]} 54. Rh4 {[%clk 00:04:20]} {[%emt
00:00:18]} f4 {[%clk 00:03:43]} {[%emt 00:00:07]} 55. Ke2 {[%clk 00:04:17]}
{[%emt 00:00:08]} Ke4 {[%clk 00:03:43]} {[%emt 00:00:05]} 56. Rh3 {[%clk
00:04:03]} {[%emt 00:00:18]} Rg2+ {[%emt 00:00:10]} 57. Kf1 {[%clk 00:04:03]}
Rg3 {[%clk 00:03:20]} {[%emt 00:00:28]} 58. Rxh5 {[%clk 00:03:57]} {[%emt
00:00:10]} Rxc3 {[%clk 00:03:24]} {[%emt 00:00:02]} 59. Rh6 {[%clk 00:03:53]}
{[%emt 00:00:09]} Rxa3 {[%clk 00:03:17]} {[%emt 00:00:12]} 60. Re6+ {[%clk
00:03:55]} {[%emt 00:00:03]} Kf3 {[%clk 00:03:21]} {[%emt 00:00:02]} 61. Re5
{[%clk 00:03:51]} {[%emt 00:00:08]} Ra1+ {[%clk 00:03:23]} {[%emt 00:00:03]} 62.
Re1 {[%clk 00:03:53]} {[%emt 00:00:04]} Rxe1+ {[%clk 00:03:26]} {[%emt
00:00:02]} 63. Kxe1 {[%clk 00:03:57]} {[%emt 00:00:01]} Ke3 {[%clk 00:03:30]}
{[%emt 00:00:02]} 0-1

[Event "MCR rapid mládeže 2023 U16"]
[Site "Harachov, Czech Republic"]
[Date "2023.09.09"]
[Round "1.33"]
[White "Vorlik, Jachym"]
[Black "Hlavacek, Pavel"]
[Result "1-0"]
[TimeControl "20min+5s/move"]
[WhiteElo "1210"]
[BlackElo "1203"]

1. e4 {[%clk 00:20:11]} {[%emt 00:00:03]} c5 {[%clk 00:20:12]} {[%emt
00:00:03]} 2. Nf3 {[%clk 00:20:10]} {[%emt 00:00:07]} d6 {[%clk 00:20:16]} 3.
Nc3 {[%clk 00:19:53]} {[%emt 00:00:22]} Nc6 {[%clk 00:20:20]} {[%emt 00:00:02]}
4. d4 {[%clk 00:19:33]} {[%emt 00:00:24]} cxd4 {[%clk 00:20:23]} {[%emt
00:00:02]} 5. Nxd4 {[%clk 00:19:33]} {[%emt 00:00:05]} Nf6 {[%clk 00:20:23]}
{[%emt 00:00:05]} 6. Bb5 {[%clk 00:19:22]} {[%emt 00:00:16]} Bd7 {[%clk
00:20:24]} {[%emt 00:00:04]} 7. O-O {[%clk 00:19:08]} {[%emt 00:00:20]} g6
{[%clk 00:20:08]} {[%emt 00:00:21]} 8. Be3 {[%clk 00:18:42]} {[%emt 00:00:30]}
Bg7 {[%clk 00:19:40]} {[%emt 00:00:33]} 9. f3 {[%clk 00:18:00]} {[%emt
00:00:47]} O-O {[%clk 00:19:33]} {[%emt 00:00:11]} 10. Bxc6 {[%clk 00:16:40]}
{[%emt 00:01:26]} Bxc6 {[%clk 00:19:34]} {[%emt 00:00:04]} 11. Qd2 {[%clk
00:16:19]} {[%emt 00:00:25]} Re8 {[%clk 00:19:23]} {[%emt 00:00:16]} 12. Rad1
{[%clk 00:15:57]} {[%emt 00:00:27]} Qd7 {[%clk 00:18:46]} {[%emt 00:00:42]} 13.
Rfe1 {[%clk 00:15:26]} {[%emt 00:00:37]} Rad8 {[%clk 00:18:36]} {[%emt
00:00:15]} 14. Nxc6 {[%clk 00:14:48]} {[%emt 00:00:42]} bxc6 {[%clk 00:18:30]}
{[%emt 00:00:12]} 15. Bh6 {[%clk 00:14:05]} {[%emt 00:00:48]} Bh8 {[%clk
00:18:09]} {[%emt 00:00:26]} 16. Qe3 {[%clk 00:13:30]} {[%emt 00:00:39]} c5
{[%clk 00:17:53]} {[%emt 00:00:21]} 17. e5 {[%clk 00:13:19]} {[%emt 00:00:17]}
Nh5 {[%clk 00:17:09]} {[%emt 00:00:49]} 18. g4 {[%clk 00:12:42]} {[%emt
00:00:42]} Ng7 {[%clk 00:16:20]} {[%emt 00:00:53]} 19. Nd5 {[%clk 00:11:19]}
{[%emt 00:01:28]} Qc6 {[%clk 00:12:19]} {[%emt 00:04:07]} 20. exd6 {[%clk
00:10:45]} {[%emt 00:00:39]} Rxd6 {[%clk 00:11:48]} {[%emt 00:00:36]} 21. Nxe7+
{[%clk 00:10:29]} {[%emt 00:00:21]} Rxe7 {[%clk 00:11:41]} {[%emt 00:00:12]} 22.
Qxe7 {[%clk 00:10:27]} {[%emt 00:00:06]} Ne6 {[%clk 00:07:27]} {[%emt
00:04:20]} 23. Rxd6 {[%clk 00:09:15]} {[%emt 00:01:17]} Bd4+ {[%clk 00:07:05]}
{[%emt 00:00:27]} 24. Rxd4 {[%clk 00:08:20]} {[%emt 00:01:00]} cxd4 {[%clk
00:07:00]} {[%emt 00:00:09]} 25. Rxe6 {[%clk 00:08:23]} {[%emt 00:00:03]} 1-0

[Event "MCR rapid mládeže 2023 U16"]
[Site "Harachov, Czech Republic"]
[Date "2023.09.09"]
[Round "1.34"]
[White "Bartak, Tobias"]
[Black "Trejbal, Jindrich"]
[Result "0-1"]
[TimeControl "20min+5s/move"]
[WhiteElo "1259"]
[BlackElo "1088"]

1. e4 {[%clk 00:20:06]} {[%emt 00:00:03]} e5 {[%clk 00:20:07]} {[%emt
00:00:04]} 2. Nf3 {[%clk 00:20:08]} {[%emt 00:00:03]} Nf6 {[%clk 00:20:06]}
{[%emt 00:00:05]} 3. Nc3 {[%clk 00:20:05]} {[%emt 00:00:08]} Bb4 {[%clk
00:20:05]} {[%emt 00:00:06]} 4. d3 {[%clk 00:19:49]} {[%emt 00:00:21]} Nc6
{[%clk 00:18:43]} {[%emt 00:01:28]} 5. Bg5 {[%clk 00:18:57]} {[%emt 00:00:56]}
O-O {[%clk 00:17:43]} {[%emt 00:01:05]} 6. Be2 {[%clk 00:18:15]} {[%emt
00:00:46]} h6 {[%clk 00:17:21]} {[%emt 00:00:28]} 7. Bh4 {[%clk 00:18:03]}
{[%emt 00:00:17]} d6 {[%clk 00:16:17]} {[%emt 00:01:10]} 8. O-O {[%clk
00:16:53]} {[%emt 00:01:14]} Qe8 {[%clk 00:15:22]} {[%emt 00:01:01]} 9. Bxf6
{[%clk 00:15:37]} {[%emt 00:01:20]} Bxc3 {[%emt 00:00:14]} 10. Bxg7 {[%clk
00:14:58]} {[%emt 00:00:42]} Kxg7 {[%clk 00:15:07]} {[%emt 00:00:14]} 11. bxc3
{[%clk 00:14:55]} {[%emt 00:00:08]} Kh7 {[%clk 00:14:54]} {[%emt 00:00:17]} 12.
Nh4 {[%clk 00:13:52]} {[%emt 00:01:07]} Rg8 {[%clk 00:13:56]} {[%emt 00:01:03]}
13. Bh5 {[%clk 00:12:55]} {[%emt 00:01:02]} Qe7 {[%clk 00:12:44]} {[%emt
00:01:18]} 14. g3 {[%clk 00:12:13]} {[%emt 00:00:48]} Qxh4 {[%clk 00:12:29]}
{[%emt 00:00:20]} 15. Bxf7 {[%clk 00:11:55]} {[%emt 00:00:22]} Rg7 {[%clk
00:11:58]} {[%emt 00:00:37]} 16. Kh1 {[%clk 00:10:20]} {[%emt 00:01:40]} Bh3
{[%clk 00:09:27]} {[%emt 00:02:36]} 17. Rg1 {[%clk 00:09:23]} {[%emt 00:01:01]}
Qf6 {[%clk 00:08:53]} {[%emt 00:00:39]} 18. Bh5 {[%clk 00:07:47]} {[%emt
00:01:41]} Qxf2 {[%clk 00:07:55]} {[%emt 00:01:03]} 19. Bf3 {[%clk 00:07:06]}
{[%emt 00:00:45]} Rf8 {[%clk 00:06:55]} {[%emt 00:01:06]} 20. Bg2 {[%clk
00:06:50]} {[%emt 00:00:20]} Bxg2+ {[%clk 00:06:28]} {[%emt 00:00:33]} 21. Rxg2
{[%clk 00:06:50]} {[%emt 00:00:06]} Qf3 {[%clk 00:06:31]} {[%emt 00:00:02]} 22.
Qxf3 {[%clk 00:06:22]} {[%emt 00:00:33]} Rxf3 {[%clk 00:06:34]} {[%emt
00:00:02]} 23. Rb1 {[%clk 00:06:17]} {[%emt 00:00:10]} b6 {[%clk 00:06:11]}
{[%emt 00:00:28]} 24. Kg1 {[%clk 00:05:32]} {[%emt 00:00:49]} Rgf7 {[%clk
00:05:56]} {[%emt 00:00:20]} 25. h4 {[%clk 00:04:38]} {[%emt 00:00:59]} a5
{[%clk 00:05:41]} {[%emt 00:00:20]} 26. a4 {[%clk 00:04:06]} {[%emt 00:00:37]}
Ne7 {[%clk 00:05:09]} {[%emt 00:00:37]} 27. d4 {[%clk 00:03:48]} {[%emt
00:00:24]} Nc6 {[%clk 00:04:17]} {[%emt 00:00:56]} 28. d5 {[%clk 00:03:02]}
{[%emt 00:00:51]} Nd8 {[%clk 00:03:46]} {[%emt 00:00:36]} 29. c4 {[%clk
00:02:51]} {[%emt 00:00:17]} Nb7 {[%clk 00:03:41]} {[%emt 00:00:10]} 30. Rb3
{[%clk 00:02:25]} {[%emt 00:00:31]} Rf1+ {[%clk 00:03:13]} {[%emt 00:00:33]} 31.
Kh2 {[%clk 00:02:28]} {[%emt 00:00:01]} R1f2 {[%clk 00:03:02]} {[%emt
00:00:16]} 32. Kg1 {[%clk 00:02:20]} {[%emt 00:00:15]} Rxg2+ {[%clk 00:03:04]}
{[%emt 00:00:02]} 33. Kxg2 {[%clk 00:02:23]} {[%emt 00:00:02]} Nc5 {[%clk
00:03:07]} {[%emt 00:00:01]} 0-1

[Event "MCR rapid mládeže 2023 U16"]
[Site "Harachov, Czech Republic"]
[Date "2023.09.09"]
[Round "1.35"]
[White "Skoloud, Josef"]
[Black "Temenugov, Leo Filip"]
[Result "0-1"]
[TimeControl "20min+5s/move"]
[WhiteElo "1075"]
[BlackElo "1096"]

1. e4 {[%clk 00:19:54]} {[%emt 00:00:15]} e5 {[%clk 00:20:06]} {[%emt
00:00:04]} 2. f4 {[%clk 00:19:38]} {[%emt 00:00:20]} exf4 {[%clk 00:20:01]}
{[%emt 00:00:10]} 3. Nf3 {[%clk 00:19:33]} {[%emt 00:00:09]} Nf6 {[%clk
00:19:59]} {[%emt 00:00:08]} 4. e5 {[%clk 00:19:24]} {[%emt 00:00:14]} Nd5
{[%clk 00:19:52]} {[%emt 00:00:12]} 5. c4 {[%clk 00:19:13]} {[%emt 00:00:17]}
Ne7 {[%clk 00:19:44]} {[%emt 00:00:13]} 6. d4 {[%clk 00:18:37]} {[%emt
00:00:41]} d6 {[%clk 00:19:35]} {[%emt 00:00:14]} 7. Bxf4 {[%clk 00:18:12]}
{[%emt 00:00:29]} dxe5 {[%clk 00:19:19]} {[%emt 00:00:21]} 8. Nxe5 {[%clk
00:17:23]} {[%emt 00:00:54]} Nf5 {[%clk 00:19:05]} {[%emt 00:00:18]} 9. Bd3
{[%clk 00:16:38]} {[%emt 00:00:51]} Qxd4 {[%clk 00:18:56]} {[%emt 00:00:14]} 10.
Qe2 {[%clk 00:12:17]} {[%emt 00:04:26]} Bb4+ {[%clk 00:18:09]} {[%emt
00:00:53]} 11. Bd2 {[%clk 00:10:28]} {[%emt 00:01:54]} Bxd2+ {[%clk 00:17:46]}
{[%emt 00:00:28]} 12. Nxd2 {[%clk 00:09:03]} {[%emt 00:01:30]} Qh4+ {[%clk
00:17:40]} {[%emt 00:00:10]} 13. Kd1 {[%clk 00:08:29]} {[%emt 00:00:39]} O-O
{[%clk 00:17:32]} {[%emt 00:00:13]} 14. Nef3 {[%clk 00:07:28]} {[%emt
00:01:07]} Qf6 {[%clk 00:16:25]} {[%emt 00:01:10]} 15. Ne4 {[%clk 00:07:10]}
{[%emt 00:00:24]} Qe6 {[%clk 00:15:37]} {[%emt 00:00:39]} 16. Re1 {[%clk
00:06:31]} {[%emt 00:00:58]} Nc6 {[%clk 00:15:20]} {[%emt 00:00:21]} 17. Qf2
{[%clk 00:05:32]} {[%emt 00:01:05]} Rd8 {[%clk 00:14:42]} {[%emt 00:00:42]} 18.
Qf1 {[%clk 00:03:35]} {[%emt 00:02:03]} Qd7 {[%clk 00:13:57]} {[%emt 00:00:48]}
19. Nc5 {[%clk 00:01:48]} {[%emt 00:01:54]} Qd6 {[%clk 00:13:48]} {[%emt
00:00:13]} 20. Nb3 {[%clk 00:01:41]} {[%emt 00:00:13]} Qxd3+ {[%clk 00:13:41]}
{[%emt 00:00:11]} 21. Qxd3 {[%clk 00:01:08]} {[%emt 00:00:38]} Rxd3+ {[%clk
00:13:36]} {[%emt 00:00:10]} 22. Kc2 {[%clk 00:01:10]} {[%emt 00:00:04]} Nb4+
{[%clk 00:13:30]} {[%emt 00:00:12]} 23. Kc1 {[%clk 00:01:03]} {[%emt 00:00:11]}
Be6 {[%clk 00:13:17]} {[%emt 00:00:17]} 24. Nc5 {[%clk 00:00:54]} {[%emt
00:00:15]} Rd6 {[%clk 00:12:32]} {[%emt 00:00:49]} 25. a3 {[%clk 00:00:53]}
{[%emt 00:00:07]} Nd3+ {[%clk 00:12:30]} {[%emt 00:00:08]} 26. Nxd3 {[%clk
00:00:57]} {[%emt 00:00:01]} Rxd3 {[%clk 00:12:29]} {[%emt 00:00:05]} 27. Ng5
{[%clk 00:00:24]} {[%emt 00:00:38]} Ne3 {[%clk 00:12:18]} {[%emt 00:00:16]} 28.
Nxe6 {[%clk 00:00:23]} {[%emt 00:00:07]} fxe6 {[%clk 00:12:18]} {[%emt
00:00:04]} 29. Kb1 {[%clk 00:00:15]} {[%emt 00:00:14]} Rad8 {[%clk 00:12:17]}
{[%emt 00:00:04]} 30. Ka2 {[%clk 00:00:19]} {[%emt 00:00:02]} Nc2 {[%clk
00:12:05]} {[%emt 00:00:14]} 31. Rxe6 {[%clk 00:00:16]} {[%emt 00:00:11]} Nxa1
{[%clk 00:12:02]} {[%emt 00:00:08]} 32. Kxa1 {[%clk 00:00:20]} {[%emt
00:00:01]} Rd1+ {[%clk 00:12:04]} {[%emt 00:00:03]} 33. Ka2 {[%clk 00:00:23]}
{[%emt 00:00:02]} Kf7 {[%clk 00:11:54]} {[%emt 00:00:14]} 34. Re5 {[%clk
00:00:27]} {[%emt 00:00:02]} R8d2 {[%clk 00:11:52]} {[%emt 00:00:08]} 35. Rb5
{[%clk 00:00:29]} {[%emt 00:00:03]} b6 {[%clk 00:11:46]} {[%emt 00:00:10]} 36.
c5 {[%clk 00:00:29]} {[%emt 00:00:05]} a6 {[%clk 00:11:43]} {[%emt 00:00:08]}
37. Rb3 {[%clk 00:00:30]} {[%emt 00:00:04]} bxc5 {[%clk 00:11:42]} {[%emt
00:00:06]} 38. Rc3 {[%clk 00:00:33]} {[%emt 00:00:01]} Re2 {[%clk 00:11:40]}
{[%emt 00:00:08]} 39. Rxc5 {[%clk 00:00:21]} {[%emt 00:00:18]} Rdd2 {[%clk
00:11:42]} {[%emt 00:00:03]} 40. Rxc7+ {[%clk 00:00:25]} {[%emt 00:00:01]} Kg6
{[%clk 00:11:41]} {[%emt 00:00:05]} 41. Rb7 {[%clk 00:00:29]} {[%emt 00:00:02]}
Rxg2 {[%clk 00:11:37]} {[%emt 00:00:07]} 42. Rb6+ {[%clk 00:00:28]} {[%emt
00:00:35]} Kh5 {[%clk 00:11:37]} {[%emt 00:00:23]} 43. Rb4 {[%clk 00:01:22]}
{[%emt 00:00:12]} a5 {[%clk 00:11:29]} {[%emt 00:00:12]} 44. Rb5+ {[%clk
00:01:25]} {[%emt 00:00:02]} Rg5 {[%clk 00:11:27]} {[%emt 00:00:07]} 45. Rb7
{[%clk 00:01:25]} {[%emt 00:00:05]} Rxh2 {[%clk 00:11:23]} {[%emt 00:00:08]} 46.
Rb3 {[%clk 00:01:26]} {[%emt 00:00:05]} a4 {[%clk 00:11:22]} {[%emt 00:00:06]}
47. Rb4 {[%clk 00:01:30]} {[%emt 00:00:01]} Rgg2 {[%clk 00:11:20]} {[%emt
00:00:07]} 48. Rb5+ {[%clk 00:01:33]} {[%emt 00:00:03]} g5 {[%clk 00:11:21]}
{[%emt 00:00:03]} 49. Rb7 {[%clk 00:01:33]} {[%emt 00:00:04]} Kg6 {[%clk
00:11:17]} {[%emt 00:00:09]} 50. Rb6+ {[%clk 00:01:38]} Kh5 {[%clk 00:11:18]}
{[%emt 00:00:06]} 51. Rb7 {[%clk 00:01:40]} {[%emt 00:00:03]} h6 {[%clk
00:11:20]} {[%emt 00:00:02]} 52. Rb6 {[%clk 00:01:44]} {[%emt 00:00:01]} Rh1
{[%clk 00:11:20]} {[%emt 00:00:05]} 53. Rb5 {[%clk 00:01:43]} {[%emt 00:00:06]}
Rgg1 {[%clk 00:11:19]} {[%emt 00:00:05]} 54. b3 {[%clk 00:01:42]} {[%emt
00:00:07]} Rh2# {[%clk 00:11:21]} {[%emt 00:00:03]} 0-1

[Event "MCR rapid mládeže 2023 U16"]
[Site "Harachov, Czech Republic"]
[Date "2023.09.09"]
[Round "1.36"]
[White "Burel, Jan"]
[Black "Zeman, Jonas"]
[Result "0-1"]
[TimeControl "20min+5s/move"]
[WhiteElo "1046"]
[BlackElo "1130"]

1. e4 {[%clk 00:20:08]} c5 {[%clk 00:20:08]} {[%emt 00:00:03]} 2. Nf3 {[%clk
00:20:10]} {[%emt 00:00:03]} d6 {[%clk 00:20:11]} {[%emt 00:00:03]} 3. Bc4
{[%clk 00:20:09]} {[%emt 00:00:05]} Nc6 {[%clk 00:19:44]} {[%emt 00:00:32]} 4.
Nc3 {[%clk 00:20:10]} {[%emt 00:00:05]} e6 {[%clk 00:19:08]} {[%emt 00:00:40]}
5. d3 {[%clk 00:19:40]} {[%emt 00:00:34]} Nf6 {[%clk 00:18:57]} {[%emt
00:00:16]} 6. Bg5 {[%clk 00:19:21]} {[%emt 00:00:24]} Be7 {[%clk 00:18:36]}
{[%emt 00:00:26]} 7. O-O {[%clk 00:19:07]} {[%emt 00:00:20]} O-O {[%clk
00:17:34]} {[%emt 00:01:07]} 8. Qd2 {[%clk 00:19:03]} {[%emt 00:00:09]} a6
{[%clk 00:16:52]} {[%emt 00:00:47]} 9. a4 {[%clk 00:18:53]} {[%emt 00:00:15]}
Re8 {[%clk 00:15:44]} {[%emt 00:01:13]} 10. Rfe1 {[%clk 00:17:54]} {[%emt
00:01:03]} h6 {[%clk 00:14:53]} {[%emt 00:00:56]} 11. Be3 {[%clk 00:16:32]}
{[%emt 00:01:27]} d5 {[%clk 00:13:52]} {[%emt 00:01:07]} 12. exd5 {[%clk
00:16:27]} {[%emt 00:00:10]} exd5 {[%clk 00:13:47]} {[%emt 00:00:10]} 13. Bb3
{[%clk 00:16:09]} {[%emt 00:00:23]} d4 {[%clk 00:13:48]} {[%emt 00:00:04]} 14.
Nd1 {[%clk 00:14:40]} {[%emt 00:01:34]} dxe3 {[%clk 00:13:44]} {[%emt
00:00:09]} 15. Nxe3 {[%clk 00:14:36]} {[%emt 00:00:08]} Bg4 {[%clk 00:13:01]}
{[%emt 00:00:48]} 16. Nh4 {[%clk 00:13:52]} {[%emt 00:00:50]} Ne4 {[%clk
00:11:22]} {[%emt 00:01:43]} 17. Qc1 {[%clk 00:12:47]} {[%emt 00:01:10]} Nxf2
{[%clk 00:10:39]} {[%emt 00:00:48]} 18. Nxg4 {[%clk 00:12:02]} {[%emt
00:00:50]} Nxg4 {[%clk 00:10:32]} {[%emt 00:00:12]} 19. Nf3 {[%clk 00:11:47]}
{[%emt 00:00:15]} c4 {[%clk 00:09:09]} {[%emt 00:01:34]} 20. Bxc4 {[%clk
00:11:10]} {[%emt 00:00:42]} Qb6+ {[%clk 00:08:56]} {[%emt 00:00:17]} 21. d4
{[%clk 00:09:07]} {[%emt 00:02:08]} Nxd4 {[%clk 00:08:25]} {[%emt 00:00:36]} 22.
Bxf7+ {[%clk 00:09:04]} {[%emt 00:00:07]} Kh8 {[%clk 00:07:49]} {[%emt
00:00:42]} 23. Kh1 {[%clk 00:04:02]} {[%emt 00:05:07]} Nb3 {[%clk 00:06:48]}
{[%emt 00:01:05]} 24. cxb3 {[%clk 00:02:49]} {[%emt 00:01:19]} Nf2+ {[%clk
00:06:44]} {[%emt 00:00:08]} 25. Kg1 {[%clk 00:02:49]} {[%emt 00:00:04]} Nh3+
{[%clk 00:06:45]} {[%emt 00:00:05]} 0-1